bitfinex-derivatives/quotes_BTCF0:USTF0_20250429
["timestamp","ask_amount","ask_price","bid_price","bid_amount"]
[1745923549002,1.1448966,94908.0,94907.0,0.0353]
[1745923550703,1.1128966,94908.0,94907.0,0.0353]
[1745923551598,1.1128966,94908.0,94907.0,0.0323]
[1745923551892,0.210661,94906.0,94905.0,0.0324]
[1745923552097,0.421371,94906.0,94905.0,0.0324]
[1745923552303,0.421371,94906.0,94901.0,0.0309]
[1745923552304,0.2106699,94902.0,94901.0,0.0309]
[1745923552702,0.2436699,94902.0,94901.0,0.0309]
[1745923553302,0.3636699,94902.0,94901.0,0.0309]
[1745923555410,0.3636699,94902.0,94901.0,0.0319]
[1745923555602,0.3636699,94902.0,94901.0,0.0628]
[1745923560207,0.3936699,94902.0,94901.0,0.001]
[1745923561705,0.8151199,94902.0,94901.0,0.001]
[1745923564615,0.2106721,94901.0,94900.0,0.1]
[1745923564812,0.6321321,94901.0,94900.0,0.1]
[1745923565014,0.6936321,94901.0,94900.0,0.1]
[1745923565205,0.8136321,94901.0,94900.0,0.1]
[1745923565919,0.8136321,94901.0,94900.0,0.101]
[1745923566911,0.8146321,94901.0,94900.0,0.101]
[1745923571419,0.2106832,94896.0,94895.0,0.00105379]
[1745923571620,0.5714832,94896.0,94895.0,0.00105379]
[1745923571913,0.210701,94888.0,94887.0,0.03496168]
[1745923572115,0.330701,94888.0,94887.0,0.03496168]
[1745923572305,0.330701,94888.0,94887.0,0.24574168]
[1745923572505,0.34366656,94888.0,94887.0,0.24574168]
[1745923572705,0.37536656,94888.0,94887.0,0.45644488]
[1745923573415,0.40536656,94888.0,94887.0,0.24574168]
[1745923573609,0.40536656,94888.0,94887.0,0.45644488]
[1745923573804,0.40536656,94888.0,94887.0,0.48714488]
[1745923574313,0.40536656,94888.0,94887.0,0.21594168]
[1745923574613,0.40536656,94888.0,94887.0,0.42664488]
[1745923575615,0.37366656,94888.0,94887.0,0.49144488]
[1745923575821,0.37366656,94888.0,94887.0,0.85224488]
[1745923576024,0.330701,94888.0,94887.0,0.85224488]
[1745923577415,0.34322431,94888.0,94887.0,0.85224488]
[1745923579717,0.330701,94888.0,94887.0,0.85224488]
[1745923580716,0.34331762,94888.0,94887.0,0.85224488]
[1745923582419,0.34331762,94888.0,94887.0,0.24836488]
[1745923583216,0.40721762,94888.0,94887.0,0.24836488]
[1745923587215,0.40721762,94888.0,94887.0,0.27886488]
[1745923587616,0.40721762,94888.0,94887.0,0.24836488]
[1745923590413,0.72339462,94888.0,94878.0,0.3608]
[1745923590622,0.2634228,94873.0,94872.0,0.3160867]
[1745923590812,0.4741328,94873.0,94872.0,0.3160867]
[1745923591122,0.8049428,94873.0,94872.0,0.3160867]
[1745923591617,0.8576269,94873.0,94872.0,0.2634045]
[1745923591924,0.8576269,94873.0,94872.0,0.2664045]
[1745923593011,0.8576269,94873.0,94872.0,0.003]
[1745923593216,0.8576269,94873.0,94872.0,0.005]
[1745923594913,0.8576269,94873.0,94872.0,0.003]
[1745923595314,0.8576269,94873.0,94872.0,0.002]
[1745923597121,0.8576269,94873.0,94872.0,0.2127365]
[1745923597420,0.8576269,94873.0,94872.0,0.002]
[1745923598420,0.8576269,94873.0,94872.0,0.0327]
[1745923599114,0.8576269,94873.0,94872.0,0.2434365]
[1745923599627,0.8576269,94873.0,94872.0,0.002]
[1745923601627,0.8576269,94873.0,94872.0,0.2127365]
[1745923601826,0.8576269,94873.0,94872.0,0.002]
[1745923602721,0.8888269,94873.0,94872.0,0.002]
[1745923602926,0.8888269,94873.0,94872.0,0.001]
[1745923603518,0.8888269,94873.0,94872.0,0.2117365]
[1745923603719,0.0526841,94872.0,94861.0,0.3608]
[1745923603915,0.2107498,94866.0,94865.0,0.21180522]
[1745923604115,0.3307498,94866.0,94865.0,0.21180522]
[1745923604528,0.3307498,94866.0,94865.0,0.21180622]
[1745923604824,0.3944498,94866.0,94865.0,0.00305412]
[1745923605030,0.2107587,94862.0,94861.0,0.3608]
[1745923605223,0.2107587,94862.0,94855.0,0.065]
[1745923605224,0.2107721,94856.0,94855.0,0.0326]
[1745923605536,0.2107721,94856.0,94855.0,0.2433743]
[1745923605914,0.2431721,94856.0,94855.0,0.2433743]
[1745923606119,0.3631721,94856.0,94855.0,0.2433743]
[1745923607130,0.12,94856.0,94855.0,0.4542243]
[1745923607325,0.3307721,94856.0,94855.0,0.2433743]
[1745923607826,0.34376271,94856.0,94855.0,0.2433743]
[1745923609116,0.37666271,94856.0,94855.0,0.2433743]
[1745923617424,0.37666271,94856.0,94855.0,0.2746743]
[1745923617625,0.37866271,94856.0,94855.0,0.2746743]
[1745923620432,0.16789061,94856.0,94855.0,0.2746743]
[1745923620638,0.122,94856.0,94855.0,0.4855243]
[1745923621520,0.122,94856.0,94855.0,0.5176243]
[1745923622233,0.122,94856.0,94855.0,2.0176243]
[1745923625646,0.0526808,94878.0,94873.0,0.2107343]
[1745923625934,0.2434321,94874.0,94873.0,0.5715343]
[1745923626134,0.7849521,94874.0,94873.0,0.5715343]
[1745923626337,0.79754374,94874.0,94873.0,0.5715343]
[1745923626833,0.80254374,94874.0,94873.0,0.5715343]
[1745923627035,0.83464374,94874.0,94873.0,0.5715343]
[1745923627231,0.83864374,94874.0,94873.0,0.5715343]
[1745923629534,0.2107521,94870.0,94869.0,0.2107343]
[1745923629840,0.526835,94870.0,94869.0,0.2107343]
[1745923630042,0.6322821,94870.0,94869.0,0.2107343]
[1745923630340,0.7522821,94870.0,94869.0,0.2107343]
[1745923630530,0.12,94870.0,94869.0,0.2107343]
[1745923630730,0.124,94870.0,94869.0,0.2429343]
[1745923631035,0.1577,94870.0,94869.0,0.2429343]
[1745923632738,0.01259164,94874.0,94873.0,0.2107343]
[1745923632930,0.0328,94873.0,94872.0,0.3057365]
[1745923633131,0.21071,94882.0,94881.0,0.2107165]
[1745923633328,0.4542243,94882.0,94881.0,0.2107165]
[1745923633635,0.2435143,94882.0,94881.0,0.2107165]
[1745923633837,0.25655873,94882.0,94881.0,0.2107165]
[1745923634136,0.16584443,94882.0,94881.0,0.2107165]
[1745923634637,0.17184443,94882.0,94881.0,0.2107165]
[1745923634835,0.83885873,94882.0,94881.0,0.2107165]
[1745923635633,0.83485873,94882.0,94881.0,0.2107165]
[1745923635831,0.2107165,94881.0,94880.0,0.3608]
[1745923636035,0.6322165,94881.0,94880.0,0.2107178]
[1745923636244,0.8173165,94881.0,94880.0,0.2107178]
[1745923637230,0.8183165,94881.0,94880.0,0.2107178]
[1745923638740,0.2107188,94880.0,94879.0,0.3608]
[1745923638944,0.2107188,94880.0,94871.0,0.0995569]
[1745923638945,0.2634171,94875.0,94874.0,0.2107307]
[1745923639137,0.21071,94870.0,94867.0,0.0526865]
[1745923639340,0.2107454,94868.0,94867.0,0.2634319]
[1745923639535,0.4214554,94868.0,94867.0,0.6242319]
[1745923639735,0.48543,94868.0,94867.0,0.6242319]
[1745923639937,0.27461,94868.0,94867.0,0.6242319]
[1745923640138,0.39461,94868.0,94867.0,0.6242319]
[1745923641035,0.39561,94868.0,94867.0,0.6242319]
[1745923641236,0.39661,94868.0,94867.0,0.6242319]
[1745923641439,0.6073554,94868.0,94867.0,0.6242319]
[1745923641646,0.8181754,94868.0,94867.0,0.6242319]
[1745923642438,0.8181754,94868.0,94867.0,0.2107454]
[1745923643246,0.8191754,94868.0,94867.0,0.2107454]
[1745923643642,0.6611166,94868.0,94855.0,0.3608]
[1745923643853,0.6611166,94868.0,94860.0,0.2634437]
[1745923643854,0.2634602,94861.0,94860.0,0.2634437]
[1745923644146,0.2634602,94861.0,94860.0,0.3161331]
[1745923645150,0.3834602,94861.0,94860.0,0.3161331]
[1745923645347,0.5941702,94861.0,94860.0,0.3161331]
[1745923645752,0.8050102,94861.0,94860.0,0.3161331]
[1745923646461,0.8060102,94861.0,94860.0,0.3161331]
[1745923656544,0.8060102,94861.0,94860.0,0.2634437]
[1745923656853,0.8060102,94861.0,94860.0,0.2107543]
[1745923657744,0.8060102,94861.0,94860.0,0.2726543]
[1745923661554,0.121,94861.0,94860.0,0.2726543]
[1745923662458,0.1531,94861.0,94860.0,0.2726543]
[1745923665346,0.363861,94861.0,94860.0,0.2726543]
[1745923665954,0.1531,94861.0,94860.0,0.2726543]
[1745923670853,0.363861,94861.0,94860.0,0.2726543]
[1745923674556,0.363861,94861.0,94860.0,0.6334543]
[1745923675759,0.574571,94861.0,94860.0,0.5715543]
[1745923676152,0.785411,94861.0,94860.0,0.5715543]
[1745923679662,0.818611,94861.0,94860.0,0.5715543]
[1745923683768,0.818611,94861.0,94860.0,0.6031543]
[1745923683968,0.607771,94861.0,94860.0,0.6031543]
[1745923684170,0.818611,94861.0,94860.0,0.6031543]
[1745923685477,0.818611,94861.0,94860.0,0.2423543]
[1745923685659,0.818611,94861.0,94860.0,0.6031543]
[1745923688477,0.397061,94861.0,94860.0,0.6031543]
[1745923688678,0.818611,94861.0,94860.0,0.6031543]
[1745923690279,0.818611,94861.0,94860.0,0.2423543]
[1745923690478,0.818611,94861.0,94860.0,0.6031543]
[1745923690869,0.397061,94861.0,94860.0,0.6031543]
[1745923691270,0.818611,94861.0,94860.0,0.6031543]
[1745923692277,0.818611,94861.0,94860.0,0.2107543]
[1745923694465,0.818611,94861.0,94860.0,0.2763543]
[1745923699485,0.397061,94861.0,94860.0,0.2763543]
[1745923699791,0.818611,94861.0,94860.0,0.2763543]
[1745923700088,0.2107787,94853.0,94844.0,1.5]
[1745923700278,0.4214887,94853.0,94852.0,0.2123624]
[1745923700475,0.42156,94853.0,94852.0,0.2123624]
[1745923700685,0.6323387,94853.0,94852.0,0.2123624]
[1745923700888,0.6630387,94853.0,94852.0,0.2123624]
[1745923701084,0.7830387,94853.0,94852.0,0.2730624]
[1745923701287,0.7830387,94853.0,94852.0,0.2750624]
[1745923701883,0.79571727,94853.0,94852.0,0.2750624]
[1745923707798,0.58493857,94853.0,94852.0,0.2750624]
[1745923708013,0.79571727,94853.0,94852.0,0.2750624]
[1745923709104,0.58493857,94853.0,94852.0,0.2750624]
[1745923709306,0.79571727,94853.0,94852.0,0.2750624]
[1745923709906,0.58493857,94853.0,94852.0,0.2750624]
[1745923710305,0.79571727,94853.0,94852.0,0.2750624]
[1745923710599,0.82761727,94853.0,94852.0,0.2750624]
[1745923711204,0.61683857,94853.0,94852.0,0.2750624]
[1745923711704,0.82761727,94853.0,94852.0,0.2750624]
[1745923711912,0.64853857,94853.0,94852.0,0.2750624]
[1745923712304,0.85931727,94853.0,94852.0,0.2750624]
[1745923713110,0.64853857,94853.0,94852.0,0.2750624]
[1745923713810,0.85931727,94853.0,94852.0,0.2750624]
[1745923714511,0.64853857,94853.0,94852.0,0.2750624]
[1745923714706,0.58493857,94853.0,94852.0,0.2750624]
[1745923714902,0.79571727,94853.0,94852.0,0.2750624]
[1745923715407,0.58493857,94853.0,94852.0,0.2750624]
[1745923715809,0.79571727,94853.0,94852.0,0.2750624]
[1745923717813,0.82661727,94853.0,94852.0,0.2750624]
[1745923718008,0.61583857,94853.0,94852.0,0.2750624]
[1745923718417,0.82661727,94853.0,94852.0,0.2750624]
[1745923718715,0.61583857,94853.0,94852.0,0.2750624]
[1745923718911,0.82661727,94853.0,94852.0,0.2750624]
[1745923719612,0.61583857,94853.0,94852.0,0.2750624]
[1745923720107,0.82661727,94853.0,94852.0,0.2750624]
[1745923722008,0.82637434,94853.0,94852.0,0.2750624]
[1745923722716,0.61559564,94853.0,94852.0,0.2750624]
[1745923722915,0.82637434,94853.0,94852.0,0.2750624]
[1745923723213,0.61559564,94853.0,94852.0,0.2750624]
[1745923724015,0.82637434,94853.0,94852.0,0.2750624]
[1745923724615,0.15045707,94853.0,94852.0,0.4859124]
[1745923725108,0.78279577,94853.0,94852.0,0.2143624]
[1745923725513,0.79535833,94853.0,94852.0,0.2143624]
[1745923725911,0.58457963,94853.0,94852.0,0.2143624]
[1745923726111,0.79535833,94853.0,94852.0,0.2460624]
[1745923726410,0.58457963,94853.0,94852.0,0.2460624]
[1745923726822,0.79535833,94853.0,94852.0,0.2460624]
[1745923728216,0.58457963,94853.0,94852.0,0.2460624]
[1745923730017,0.79535833,94853.0,94852.0,0.2460624]
[1745923730227,0.58457963,94853.0,94852.0,0.2460624]
[1745923730412,0.58457963,94853.0,94825.0,0.0672]
[1745923730413,0.2108121,94838.0,94837.0,0.3608]
[1745923730608,0.2108165,94836.0,94818.0,0.0305]
[1745923730817,0.2108165,94836.0,94827.0,0.083809]
[1745923730818,0.4215265,94836.0,94827.0,0.083809]
[1745923731021,0.6996165,94836.0,94835.0,0.21187316]
[1745923731316,0.8516165,94836.0,94835.0,0.21187316]
[1745923732116,0.7844165,94836.0,94835.0,0.21187316]
[1745923732523,0.7844165,94836.0,94835.0,0.21287316]
[1745923733315,0.7844165,94836.0,94835.0,0.00205446]
[1745923733508,0.7844165,94836.0,94835.0,0.00305446]
[1745923733913,0.7844165,94836.0,94835.0,0.21287316]
[1745923734111,0.7844165,94836.0,94835.0,0.00205446]
[1745923734814,0.7844165,94836.0,94835.0,0.21287316]
[1745923736221,0.5735265,94836.0,94835.0,0.21287316]
[1745923736425,0.7844165,94836.0,94835.0,0.21287316]
[1745923737123,0.7844165,94836.0,94835.0,0.00205446]
[1745923739013,0.8526965,94836.0,94835.0,0.00205446]
[1745923740830,0.8526965,94836.0,94835.0,0.21287316]
[1745923741423,0.12,94836.0,94835.0,0.42376316]
[1745923742329,0.12,94836.0,94835.0,0.21287316]
[1745923742330,0.5416,94836.0,94835.0,0.21287316]
[1745923743125,0.7524165,94836.0,94835.0,0.21287316]
[1745923744134,0.7836165,94836.0,94835.0,0.21287316]
[1745923750027,0.1512,94836.0,94835.0,0.21287316]
[1745923750738,0.2635561,94825.0,94822.0,0.0527113]
[1745923750938,0.5716454,94823.0,94822.0,0.2635589]
[1745923751332,0.6042454,94823.0,94822.0,0.2635589]
[1745923751533,0.6042454,94823.0,94820.0,0.0527128]
[1745923751534,0.2108565,94819.0,94818.0,0.210852]
[1745923751728,0.22350005,94819.0,94818.0,0.210852]
[1745923752140,0.34350005,94819.0,94818.0,0.210852]
[1745923752533,0.37530005,94819.0,94818.0,0.210852]
[1745923752733,0.2108565,94818.0,94817.0,0.00158199]
[1745923752938,0.6643965,94818.0,94817.0,0.00158199]
[1745923753138,0.8161965,94818.0,94817.0,0.00158199]
[1745923753939,0.8844765,94818.0,94817.0,0.00158199]
[1745923754245,0.8844765,94818.0,94817.0,0.00358199]
[1745923754647,0.8844765,94818.0,94817.0,0.21444079]
[1745923754847,0.8844765,94818.0,94817.0,0.21644079]
[1745923755237,0.4628365,94818.0,94817.0,0.21644079]
[1745923756339,0.3945565,94818.0,94817.0,0.21644079]
[1745923758347,0.1519,94818.0,94817.0,0.21644079]
[1745923759650,0.3627565,94818.0,94817.0,0.21644079]
[1745923760041,0.12,94818.0,94817.0,0.21644079]
[1745923760535,0.12,94818.0,94817.0,0.42737079]
[1745923766241,0.3308565,94818.0,94817.0,0.46017079]
[1745923766442,0.5415665,94818.0,94817.0,0.00558199]
[1745923766645,0.7524965,94818.0,94817.0,0.00558199]
[1745923766845,0.54164,94818.0,94817.0,0.21644079]
[1745923767444,0.7524965,94818.0,94817.0,0.21644079]
[1745923767644,0.7524965,94818.0,94817.0,0.28194079]
[1745923767853,0.12,94818.0,94817.0,0.28194079]
[1745923768053,0.12,94818.0,94817.0,0.49287079]
[1745923771151,0.3308565,94818.0,94817.0,0.49287079]
[1745923771350,0.3308565,94818.0,94817.0,0.28194079]
[1745923771644,0.12,94818.0,94817.0,0.28194079]
[1745923773649,0.2142,94818.0,94817.0,0.28194079]
[1745923774048,0.1842,94818.0,94817.0,0.21644079]
[1745923774248,0.63584,94818.0,94817.0,0.21644079]
[1745923776961,0.63584,94818.0,94817.0,0.24724079]
[1745923780248,0.8466965,94818.0,94817.0,0.24724079]
[1745923780764,0.63584,94818.0,94817.0,0.24724079]
[1745923780954,0.8466965,94818.0,94817.0,0.24724079]
[1745923782756,0.63584,94818.0,94817.0,0.24724079]
[1745923782959,0.8466965,94818.0,94817.0,0.24724079]
[1745923784262,0.153,94818.0,94817.0,0.24724079]
[1745923784560,0.3608,94842.0,94817.0,0.24724079]
[1745923784561,0.5716038,94842.0,94841.0,0.2108054]
[1745923785160,1.1131938,94842.0,94841.0,0.2108054]
[1745923785758,1.1171938,94842.0,94841.0,0.2108054]
[1745923786059,1.13295685,94842.0,94841.0,0.2108054]
[1745923786559,1.19825685,94842.0,94841.0,0.2108054]
[1745923788465,0.97469,94842.0,94841.0,0.2108054]
[1745923788763,0.52,94842.0,94841.0,0.2108054]
[1745923789060,0.7308032,94842.0,94841.0,0.2108054]
[1745923789259,0.52,94842.0,94841.0,0.2108054]
[1745923789463,0.7308032,94842.0,94841.0,0.2746054]
[1745923789655,0.52,94842.0,94841.0,0.4854854]
[1745923789860,0.127,94842.0,94841.0,0.4854854]
[1745923791564,0.125,94842.0,94841.0,0.4854854]
[1745923791953,0.122,94842.0,94841.0,0.4854854]
[1745923792262,0.124,94842.0,94841.0,0.4854854]
[1745923793159,0.122,94842.0,94841.0,0.4854854]
[1745923793361,0.124,94842.0,94841.0,0.4854854]
[1745923800460,0.124,94842.0,94841.0,1.9854854]
[1745923803975,0.33471,94842.0,94841.0,1.7108054]
[1745923804175,0.54559,94842.0,94832.0,0.06537058]
[1745923804379,0.2635238,94840.0,94839.0,0.2108054]
[1745923804768,0.7508138,94840.0,94839.0,0.2108054]
[1745923805171,0.8708138,94840.0,94839.0,0.2108054]
[1745923805670,0.8728138,94840.0,94839.0,0.2108054]
[1745923806971,0.8748138,94840.0,94839.0,0.2108054]
[1745923810780,0.82211,94840.0,94839.0,0.2108054]
[1745923815881,0.61129,94840.0,94839.0,0.2108054]
[1745923816183,0.157,94840.0,94839.0,0.5716054]
[1745923816684,0.157,94840.0,94839.0,2.2824854]
[1745923816983,0.157,94840.0,94839.0,2.3446854]
[1745923819882,0.0015,94870.0,94865.0,0.2107521]
[1745923820073,0.5725498,94866.0,94865.0,0.2107521]
[1745923820275,0.9940798,94866.0,94865.0,0.2107521]
[1745923821179,1.1267863,94866.0,94865.0,0.2107521]
[1745923821873,1.1974863,94866.0,94865.0,0.2107521]
[1745923822281,1.2044863,94866.0,94865.0,0.2107521]
[1745923830593,0.1672,94866.0,94865.0,0.4215721]
[1745923830790,0.0015,94870.0,94869.0,0.2107432]
[1745923831294,0.1215,94870.0,94869.0,0.4215632]
[1745923831481,0.1215,94870.0,94869.0,0.4843632]
[1745923832083,0.1285,94870.0,94869.0,0.4843632]
[1745923832481,0.1345,94870.0,94869.0,0.4843632]
[1745923835188,0.1345,94870.0,94869.0,0.2735432]
[1745923838796,0.1345,94870.0,94869.0,0.4843632]
[1745923842198,0.1345,94870.0,94869.0,0.2735432]
[1745923844699,0.3608,94879.0,94878.0,0.2107232]
[1745923845097,0.4808,94879.0,94878.0,0.2107232]
[1745923845894,0.4808,94879.0,94878.0,0.2117232]
[1745923847492,0.4808,94879.0,94878.0,0.2147232]
[1745923848294,0.4808,94879.0,94878.0,0.2478232]
[1745923852207,0.90231,94879.0,94878.0,0.2478232]
[1745923857907,0.90231,94879.0,94878.0,0.2147232]
[1745923859417,0.90231,94879.0,94878.0,0.2167232]
[1745923861009,0.90231,94879.0,94878.0,0.2157232]
[1745923862814,1.113031,94879.0,94878.0,0.2157232]
[1745923863911,1.113031,94879.0,94878.0,0.2147232]
[1745923865406,1.113031,94879.0,94878.0,0.2137232]
[1745923869423,1.113031,94879.0,94878.0,0.003]
[1745923870214,1.113031,94879.0,94878.0,0.2137232]
[1745923870612,1.113031,94879.0,94878.0,0.2117232]
[1745923871426,1.113031,94879.0,94878.0,0.2107232]
[1745923877234,0.2107254,94877.0,94876.0,0.2634079]
[1745923877434,0.4214354,94877.0,94876.0,0.2107266]
[1745923877731,0.6322354,94877.0,94876.0,0.2107266]
[1745923877930,0.6986354,94877.0,94876.0,0.2107266]
[1745923878132,0.8186354,94877.0,94876.0,0.2107266]
[1745923880834,0.210741,94871.0,94870.0,0.2634262]
[1745923881037,0.782251,94871.0,94870.0,0.2634262]
[1745923881336,0.993061,94871.0,94870.0,0.2634262]
[1745923881737,0.993061,94871.0,94870.0,0.210741]
[1745923882033,0.993061,94871.0,94870.0,0.212741]
[1745923882235,0.993061,94871.0,94870.0,0.244041]
[1745923882236,1.143061,94871.0,94870.0,0.244041]
[1745923883435,1.143061,94871.0,94870.0,0.245041]
[1745923883621,1.143061,94871.0,94870.0,0.244041]
[1745923884438,1.143061,94871.0,94870.0,0.243041]
[1745923884638,1.143061,94871.0,94870.0,0.244041]
[1745923886726,1.143061,94871.0,94870.0,0.274541]
[1745923887039,1.143061,94871.0,94870.0,0.244041]
[1745923887848,0.210772,94860.0,94850.0,1.56537058]
[1745923888135,0.2107698,94857.0,94856.0,0.2412698]
[1745923888337,0.2107787,94854.0,94850.0,1.5]
[1745923888639,0.2107787,94854.0,94853.0,0.2107787]
[1745923888833,0.2437787,94854.0,94853.0,0.2107787]
[1745923889337,0.3967787,94854.0,94853.0,0.2426787]
[1745923889531,0.83110735,94854.0,94853.0,0.2426787]
[1745923889940,0.62032865,94854.0,94853.0,0.2426787]
[1745923890133,0.83110515,94854.0,94853.0,0.2746787]
[1745923890336,0.79810515,94854.0,94853.0,0.2746787]
[1745923890530,0.79810515,94854.0,94853.0,0.2766787]
[1745923890730,0.79810515,94854.0,94853.0,0.2786787]
[1745923891331,0.79810515,94854.0,94853.0,0.2776787]
[1745923892942,0.79810515,94854.0,94853.0,0.2786787]
[1745923896444,0.58732865,94854.0,94853.0,0.2786787]
[1745923896638,0.79810515,94854.0,94853.0,0.2786787]
[1745923897035,0.79810515,94854.0,94853.0,0.2776787]
[1745923897545,0.79810515,94854.0,94853.0,0.2766787]
[1745923899445,0.57456,94854.0,94853.0,0.2766787]
[1745923899742,0.12,94854.0,94853.0,0.2766787]
[1745923900447,0.12,94854.0,94853.0,0.4875287]
[1745923902549,0.12,94854.0,94853.0,0.5929527]
[1745923903152,0.12,94854.0,94853.0,0.4875287]
[1745923905441,0.12,94854.0,94853.0,1.9875287]
[1745923910959,0.0526791,94881.0,94864.0,0.0526883]
[1745923911144,0.1872,94873.0,94872.0,0.2107365]
[1745923911344,0.2197,94873.0,94872.0,0.2107365]
[1745923911553,0.64122,94873.0,94872.0,0.2107365]
[1745923911742,0.57402,94873.0,94872.0,0.2107365]
[1745923911947,0.57402,94873.0,94872.0,0.2746365]
[1745923912744,0.57502,94873.0,94872.0,0.2746365]
[1745923912946,0.121,94873.0,94872.0,0.2746365]
[1745923913151,0.121,94873.0,94872.0,0.4854465]
[1745923913355,0.12,94873.0,94872.0,0.4874465]
[1745923914756,0.12,94873.0,94872.0,0.4904465]
[1745923914956,0.12,94873.0,94872.0,0.4914465]
[1745923916263,0.12,94873.0,94872.0,0.2806365]
[1745923923060,0.12,94873.0,94872.0,0.6414365]
[1745923923265,0.12,94873.0,94872.0,2.1414365]
[1745923924072,0.12,94873.0,94872.0,2.3522465]
[1745923925359,0.12,94873.0,94872.0,2.4576505]
[1745923925561,0.12,94873.0,94872.0,2.47022963]
[1745923926770,0.00118323,94873.0,94872.0,2.60022963]
[1745923929564,0.00118323,94873.0,94872.0,2.47022963]
[1745923929767,0.00118323,94873.0,94872.0,2.4576505]
[1745923932164,0.00118323,94873.0,94872.0,2.3522465]
[1745923940670,0.0634,94889.0,94888.0,0.210701]
[1745923941076,0.39411,94889.0,94888.0,0.210701]
[1745923941371,0.60488,94889.0,94888.0,0.210701]
[1745923943265,0.60488,94889.0,94888.0,0.211701]
[1745923948967,0.39411,94889.0,94888.0,0.211701]
[1745923949172,0.60488,94889.0,94888.0,0.211701]
[1745923951779,0.96568,94889.0,94888.0,0.211701]
[1745923953779,0.60488,94889.0,94888.0,0.211701]
[1745923955774,0.60488,94889.0,94888.0,0.243501]
[1745923962390,0.1834,94889.0,94888.0,0.243501]
[1745923975185,0.39411,94889.0,94888.0,0.243501]
[1745923975486,0.60488,94889.0,94888.0,0.211701]
[1745923976190,0.1834,94889.0,94888.0,0.211701]
[1745923976388,0.60488,94889.0,94888.0,0.211701]
[1745923991105,0.96568,94889.0,94888.0,0.211701]
[1745923999515,0.96568,94889.0,94888.0,0.243901]
[1745924001307,0.57178,94889.0,94888.0,0.243901]
[1745924001502,0.54148,94889.0,94888.0,0.274601]
[1745924001701,0.33071,94889.0,94888.0,0.274601]
[1745924001899,0.12,94889.0,94888.0,0.485371]
[1745924006307,0.12,94889.0,94888.0,0.274601]
[1745924008213,0.12,94889.0,94888.0,0.485371]
[1745924013318,0.12,94889.0,94888.0,0.274601]
[1745924014630,0.12,94889.0,94888.0,0.306701]
[1745924021422,0.12,94889.0,94888.0,0.276001]
[1745924031031,0.12,94889.0,94888.0,0.276601]
[1745924040525,0.12,94889.0,94888.0,0.29256557]
[1745924042230,0.12,94889.0,94888.0,0.32466557]
[1745924042627,0.0326,94895.0,94894.0,0.2106877]
[1745924042942,0.001,94896.0,94895.0,0.2106854]
[1745924043146,0.001,94896.0,94895.0,1.7756854]
[1745924044142,0.121,94896.0,94895.0,1.7756854]
[1745924044333,0.122,94896.0,94895.0,1.7756854]
[1745924044529,0.122,94896.0,94895.0,1.79166944]
[1745924044736,0.122,94896.0,94895.0,1.91166944]
[1745924045130,0.122,94896.0,94895.0,1.79166944]
[1745924046629,0.122,94896.0,94895.0,1.80470356]
[1745924049039,0.122,94896.0,94895.0,1.804844]
[1745924049241,0.122,94896.0,94895.0,1.78871952]
[1745924049438,0.122,94896.0,94895.0,1.80497255]
[1745924051640,0.122,94896.0,94895.0,1.78871952]
[1745924058640,0.122,94896.0,94895.0,1.80518648]
[1745924061848,0.00566684,94899.0,94895.0,1.59450108]
[1745924062049,0.001,94926.0,94923.0,0.2106233]
[1745924062551,0.78221,94924.0,94923.0,0.2106233]
[1745924063046,0.90221,94924.0,94923.0,0.2106233]
[1745924063550,0.90421,94924.0,94923.0,0.2106233]
[1745924064048,0.93461,94924.0,94923.0,0.2106233]
[1745924065144,0.96711,94924.0,94923.0,0.2106233]
[1745924078449,0.60631,94924.0,94923.0,0.2433233]
[1745924078654,0.60631,94924.0,94923.0,0.2106233]
[1745924078856,0.2106277,94922.0,94921.0,0.210626]
[1745924079156,0.2106365,94919.0,94918.0,0.21063]
[1745924079347,0.4213465,94919.0,94918.0,0.21063]
[1745924079547,0.6320565,94919.0,94918.0,0.21063]
[1745924080247,0.7520565,94919.0,94918.0,0.21063]
[1745924080655,0.54242,94919.0,94918.0,0.21063]
[1745924094159,0.54242,94919.0,94899.0,1.56704]
[1745924094461,0.3316359,94919.0,94918.0,0.2106344]
[1745924094861,0.7530522,94919.0,94918.0,0.2106344]
[1745924096263,0.5423422,94919.0,94918.0,0.2106344]
[1745924096451,0.7520522,94919.0,94918.0,0.2106344]
[1745924097562,0.7530522,94919.0,94918.0,0.2106344]
[1745924097962,1.1138522,94919.0,94918.0,0.2106344]
[1745924102857,1.2192042,94919.0,94918.0,0.2106344]
[1745924104068,1.1138522,94919.0,94918.0,0.2106344]
[1745924105071,1.2192042,94919.0,94887.0,0.00158082]
[1745924105275,0.2106988,94889.0,94887.0,0.00158082]
[1745924105571,0.9929788,94889.0,94887.0,0.00158082]
[1745924105763,1.0983668,94889.0,94887.0,0.00158082]
[1745924105964,1.11097611,94889.0,94887.0,0.00158082]
[1745924106171,1.23097611,94889.0,94887.0,0.00158082]
[1745924106374,1.23871605,94889.0,94887.0,0.00158082]
[1745924106669,0.2107254,94877.0,94876.0,0.031]
[1745924106873,0.7822354,94877.0,94876.0,0.031]
[1745924107069,0.7822354,94877.0,94871.0,0.16102144]
[1745924107070,0.2107365,94872.0,94871.0,0.16102144]
[1745924107374,0.4214465,94872.0,94871.0,0.16102144]
[1745924107566,0.6322565,94872.0,94871.0,0.16102144]
[1745924107970,0.6624565,94872.0,94871.0,0.16102144]
[1745924108166,0.7824565,94872.0,94871.0,0.16402144]
[1745924110075,0.7824565,94872.0,94871.0,0.003]
[1745924110274,0.7824565,94872.0,94871.0,0.007]
[1745924111365,0.7824565,94872.0,94871.0,0.003]
[1745924111772,0.2107432,94869.0,94868.0,0.2427454]
[1745924111974,0.121,94872.0,94871.0,0.2107387]
[1745924112270,0.2117365,94872.0,94871.0,0.2107387]
[1745924112475,0.210741,94870.0,94869.0,0.0304]
[1745924112771,0.210741,94870.0,94869.0,0.2714432]
[1745924113277,0.330741,94870.0,94869.0,0.4822632]
[1745924113569,0.330741,94870.0,94869.0,0.4842632]
[1745924114563,0.330741,94870.0,94869.0,0.4862632]
[1745924115478,0.330741,94870.0,94869.0,0.4852632]
[1745924116170,0.330741,94870.0,94869.0,0.4862632]
[1745924116973,0.330741,94870.0,94869.0,0.4842632]
[1745924117273,0.330741,94870.0,94869.0,0.4872632]
[1745924117674,0.330741,94870.0,94869.0,0.4862632]
[1745924118281,0.330741,94870.0,94869.0,0.0647]
[1745924118485,0.330741,94870.0,94869.0,0.0657]